Cogmind - Beta 17 @@@ ROGUE MODE // 2026.08.20 @ 13:15:41 Player: TheSkyeDoctor Result: Destroyed by P-80 Master with Gamma Rifle Performance ------------- Evolutions (7) 3500 Regions Visited (15) 3000 Robots Destroyed (41) 205 Value Destroyed (1779) 1779 Prototype IDs (45) 900 Alien Tech Used (2) 400 Bonus (3100) 3100 TOTAL SCORE: 12884 Bonus ------- Registered with UFD 300 Met Optimus in HQ 500 Met Zhirov 300 Acquired SGEMP 2000 Cogmind --------- Core Integrity 0/1300 Matter 300/300 Energy 150/150 System Corruption 10% Temperature Cool (0) Movement Treading (145) Location -3/Testing Parts ------- > --- POWER (2) -------- Micro Antimatter Reactor > --- PROPULSION (8) --- Advanced Heavy Treads Advanced Heavy Treads Advanced Heavy Treads Advanced Heavy Treads > --- UTILITY (7) ------ Experimental Cooling System Advanced Signal Interpreter Advanced Target Analyzer Advanced Target Analyzer Advanced System Shield Improved Corruption Screen > --- WEAPON (4) ------- Centrium Greatsword Centrium Greatsword > --- INVENTORY (5) ---- Advanced Heavy Treads Z-bomb Delivery System SGEMP Prototype Peak State ------------ > --- POWER ------------ Improved Ion Engine Micro Antimatter Reactor > --- PROPULSION ------- Advanced Heavy Treads Advanced Heavy Treads Advanced Heavy Treads Advanced Heavy Treads > --- UTILITY ---------- Experimental Cooling System Advanced Signal Interpreter Advanced Target Analyzer Advanced Target Analyzer Advanced System Shield Improved Corruption Screen > --- WEAPON ----------- Centrium Greatsword Centrium Greatsword > --- INVENTORY -------- Advanced Heavy Treads Z-bomb Delivery System SGEMP Prototype [Rating: 150] Favorites ----------- Power Ion Engine Engine Ion Engine Power Core Neutrino Core Reactor Light Antimatter Reactor Propulsion Field Propulsion Array Treads Advanced Heavy Treads Leg Flexi-carbon Leg Wheel Wheel Hover Unit Cooled Gravmag System Flight Unit Field Propulsion Array Utility Advanced Signal Interpreter Device Seismic Detector Storage Medium Storage Unit Processor Advanced Signal Interpreter Hackware System Shield Protection Experimental Utility Shielding Weapon Power Sword Energy Gun Medium Laser Energy Cannon Cooled Nova Cannon Ballistic Gun Gauss Rifle Ballistic Cannon Hypervelocity Gauss Cannon Launcher Grenade Launcher Special Weapon Improved Plasma Cutter Impact Weapon Power Maul Slashing Weapon Power Sword Build | -11 -10 -10 -7 -5 -5 -5 -5 -4 -4 -4 -4 -4 -3 -3 -3 ------- Run | Yrd Mat Sub Scr Fac Upp Upp Zhi Pro Fac Upp Upp War Pro Res Tes Slots Evolved 14 | . . . . 10 . . . . 2 . . . . 2 . Power 1 | . . . . 1 . . . . . . . . . . . Propulsion 6 | . . . . 4 . . . . . . . . . 2 . Utility 5 | . . . . 3 . . . . 2 . . . . . . Weapon 2 | . . . . 2 . . . . . . . . . . . Parts Attached 88 | 8 . 1 4 9 8 3 7 2 11 1 . 8 1 8 17 Power 13 | 1 . . . 1 1 1 1 1 2 . . 1 . 1 3 Engine 4 | 1 . . . . 1 1 . . . . . . . . 1 Core 2 | . . . . 1 . . . 1 . . . . . . . Reactor 7 | . . . . . . . 1 . 2 . . 1 . 1 2 Propulsion 28 | 3 . . 1 1 2 1 3 . 4 1 . 2 . 5 5 Treads 5 | 1 . . . . . . . . . . . . . . 4 Leg 1 | . . . . . . . . . . . . . . . 1 Wheel 4 | 2 . . 1 1 . . . . . . . . . . . Hover 4 | . . . . . . . 3 . 1 . . . . . . Flight 14 | . . . . . 2 1 . . 3 1 . 2 . 5 . Utility 28 | 2 . . 1 4 4 1 2 . 4 . . 3 1 1 5 Device 14 | 1 . . . 3 3 . 1 . 2 . . 2 1 . 1 Storage 3 | 1 . . 1 . . . . . 1 . . . . . . Processor 6 | . . . . . 1 1 . . . . . 1 . 1 2 Hackware 3 | . . . . 1 . . . . 1 . . . . . 1 Protection 2 | . . . . . . . 1 . . . . . . . 1 Artifact . | . . . . . . . . . . . . . . . . Weapon 19 | 2 . 1 2 3 1 . 1 1 1 . . 2 . 1 4 Energy Gun 1 | 1 . . . . . . . . . . . . . . . Energy Cannon 1 | . . . . . . . . . . . . . . . 1 Ballistic Gun 3 | 1 . . 1 . . . . . 1 . . . . . . Ballistic Cannon 6 | . . . . 2 1 . . . . . . 1 . 1 1 Launcher 2 | . . . . 1 . . . 1 . . . . . . . Special Weapon 1 | . . . . . . . . . . . . 1 . . . Impact Weapon 1 | . . . . . . . 1 . . . . . . . . Slashing Weapon 4 | . . 1 1 . . . . . . . . . . . 2 Piercing Weapon . | . . . . . . . . . . . . . . . . Special Melee Weapon . | . . . . . . . . . . . . . . . . Unidentified Prototypes 14 | . . . . . . . 4 . . . . 5 1 . 4 Parts Lost 49 | . . . . 1 15 . . 4 2 . . . 4 11 12 Power 8 | . . . . . 3 . . . 1 . . . . 2 2 Propulsion 18 | . . . . . 3 . . 3 1 . . . 1 7 3 Utility 14 | . . . . 1 5 . . 1 . . . . 1 2 4 Weapon 9 | . . . . . 4 . . . . . . . 2 . 3 Highest Loss Streak 13 | . . . . 1 13 . . 2 2 . . . 4 5 10 To Critical Strikes 1 | . . . . . . . . . . . . . . . 1 Average Backups 6 | 2 5 7 8 8 7 5 4 5 5 8 8 8 7 7 3 Power . | . 1 1 1 1 1 1 1 . 1 2 2 1 1 . . Propulsion . | 1 2 2 1 1 . . . . . . . . . . . Utility 3 | . 1 3 4 2 2 2 2 2 1 2 3 4 5 5 1 Weapon 1 | . . 1 1 2 1 1 . . . 1 1 . . 1 . Tool/Special . | . . . . . . . . . . . . . . . . Unused Backups 11 | . . . 3 . . . . . . . . 2 . . 6 Power 3 | . . . 2 . . . . . . . . 1 . . . Propulsion 2 | . . . 1 . . . . . . . . . . . 1 Utility 4 | . . . . . . . . . . . . 1 . . 3 Weapon 2 | . . . . . . . . . . . . . . . 2 Tool/Special . | . . . . . . . . . . . . . . . . Average Slot Usage (%) 71 | . 100 100 96 70 48 18 42 61 67 58 63 72 70 59 46 Engine 5 | . 14 14 14 5 2 . . . . . . . . . 1 Reactor 2 | . . . . . . . 1 5 7 2 5 5 5 3 3 Treads 6 | . 14 14 10 . . . . . . . . . . . 12 Wheel 5 | . 14 14 14 10 5 . . . . . . . . . . Hover 1 | . . . . . . . 4 16 10 . . . . . . Flight 5 | . . . . . 5 5 11 3 6 12 15 18 21 20 1 Device 9 | . 14 14 14 16 8 5 5 5 10 10 10 7 7 5 2 Storage 6 | . 14 14 14 5 2 . . . 4 5 5 5 5 4 . Processor 6 | . . . . . 1 5 11 11 10 10 10 12 15 16 14 Hackware 1 | . . . . 4 2 . . . 4 5 5 5 5 2 . Energy Gun 2 | . 14 14 3 . . . . . . . . . . . . Ballistic Gun 4 | . 14 9 10 3 2 . . . 2 5 5 5 1 . . Ballistic Cannon 1 | . . . . 10 5 . . . 3 . . 2 1 . . Impact Weapon 1 | . . . . . . . 2 5 5 5 5 5 5 4 . Slashing Weapon 5 | . . 4 14 5 4 . . . . . . . . . 4 Peak Build Rating 150 | 7 8 11 23 55 60 32 66 70 96 92 92 127 127 131 150 Average Rating 58 | 5 7 8 15 48 37 17 42 65 85 84 92 116 111 104 105 On Entrance 50 | . 7 8 11 23 55 17 27 66 45 72 92 92 127 105 63 Avg Prop Armor Cover (%) 11 | 16 13 13 13 . . . 6 5 3 . . . . 12 . Naked Turns . | . . . . . . . . . . . . . . . . Heaviest Build 76 | 14 14 16 33 72 76 4 20 43 61 40 40 71 69 64 76 Greatest Support 280 | 20 10 10 28 38 38 11 33 48 45 45 45 45 44 55 280 Greatest Overweight (x) 10 | 1 1 1 10 1 6 . 1 1 2 . . 1 1 1 3 Average Overweight (x) . | . 1 1 1 1 . . . . . . . . . . . Largest Inventory Capacity 15 | 8 8 8 15 15 15 5 5 5 10 10 10 10 10 10 10 Average Capacity 9 | 7 8 8 11 15 10 5 5 5 9 10 10 10 10 10 6 Most Carried 12 | 4 7 8 12 11 11 5 5 5 10 10 8 10 10 10 10 Average Carried 7 | 2 5 7 8 9 7 5 4 4 5 8 8 9 8 8 5 Final Capacity 15 | 8 8 8 15 15 5 5 5 5 10 10 10 10 10 10 5 Final Carried 12 | 4 7 8 12 11 5 5 5 5 10 8 8 10 8 10 5 Scrap Suit Usage (%) 26 | . . . . . 47 100 100 100 100 100 100 100 33 . . Class Distribution -------------------- 71% | Mutant 12% | Gunner 10% | Sprinter 5% | Derelict-Mutant Dominant Class ---------------- Mutant | -10/Materials Mutant | -10/Subcaves Mutant | -7/Scraptown Gunner | -5/Factory Sprinter | -5/Upper Caves Mutant | -5/Upper Caves Derelict-Mutant | -5/Zhirov Derelict-Mutant | -4/Proximity Caves Mutant | -4/Factory Mutant | -4/Upper Caves Mutant | -4/Upper Caves Gunner | -4/Warlord Sprinter | -3/Proximity Caves Sprinter | -3/Research Mutant | -3/Testing Resources | -11 -10 -10 -7 -5 -5 -5 -5 -4 -4 -4 -4 -4 -3 -3 -3 ----------- Run | Yrd Mat Sub Scr Fac Upp Upp Zhi Pro Fac Upp Upp War Pro Res Tes Matter Collected 2164 | 304 36 187 40 1 656 31 50 59 151 58 69 . 53 81 388 Remotely . | . . . . . . . . . . . . . . . . Salvage Created 2365 | 141 36 57 . 201 132 . 326 . 199 . 99 . 66 184 924 Parts 110 | 13 5 4 . 5 9 . 2 . 6 . 5 . . 4 57 Haulers Intercepted 3 | . . . . . . . . . 1 . . . . 2 . Recyclers Shooed . | . . . . . . . . . . . . . . . . Parts Field Recycled . | . . . . . . . . . . . . . . . . Retrieved Matter . | . . . . . . . . . . . . . . . . Parts Self-Destructed 26 | . . 13 . . 7 . . 1 . . 5 . . . . Prevented 2 | . . . . . . . 2 . . . . . . . . Parts Restored . | . . . . . . . . . . . . . . . . Kills | -11 -10 -10 -7 -5 -5 -5 -5 -4 -4 -4 -4 -4 -3 -3 -3 ------- Run | Yrd Mat Sub Scr Fac Upp Upp Zhi Pro Fac Upp Upp War Pro Res Tes Combat Hostiles Destroyed 24 | . . 1 . 4 4 . . . 2 . 2 . 1 . 10 Melee 10 | . . . . . 1 . . . . . . . . . 9 Guns 5 | . . 1 . . 1 . . . 1 . 2 . . . . Cannons 8 | . . . . 3 2 . . . 1 . . . 1 . 1 AOE 1 | . . . . 1 . . . . . . . . . . . Classes Destroyed 12 | 3 . 1 . 1 2 . . . 2 . . . 1 . 2 Worker 5 | 2 1 . . . . . . . 1 . . . . . 1 Tunneler 4 | 3 1 . . . . . . . . . . . . . . Hauler 3 | . . . . . . . . . 1 . . . . 2 . Recycler 2 | 1 . . . . . . . . . . . . . . 1 Watcher 2 | . . . . . . . . . . . . . . . 2 Swarmer 4 | . . . . . 3 . . . . . 1 . . . . Grunt 8 | . . . . 3 . . . . . . 1 . . . 4 Brawler 1 | . . . . . . . . . . . . . 1 . . Researcher 1 | . . . . . . . . . . . . . . . 1 Sentry 2 | . . 1 . 1 . . . . . . . . . . . Hunter 1 | . . . . . 1 . . . . . . . . . . Programmer 8 | . . . . . . . . . 2 . . . . . 6 Best Kill Streak 5 | 2 2 1 . 3 3 . . . 2 . 2 . 1 2 5 Combat Bots Only 5 | . . 1 . 3 3 . . . 1 . 2 . 1 . 5 Max Kills in Single Turn 1 | 1 1 1 . 1 1 . . . 1 . 1 . 1 1 1 Gunslinging . | . . . . . . . . . . . . . . . . Exploded 1 | . . . . 1 . . . . . . . . . . . Melee 1 | . . . . . 1 . . . . . . . . . 1 Uniques/NPCs Destroyed . | . . . . . . . . . . . . . . . . Combat | -11 -10 -10 -7 -5 -5 -5 -5 -4 -4 -4 -4 -4 -3 -3 -3 -------- Run | Yrd Mat Sub Scr Fac Upp Upp Zhi Pro Fac Upp Upp War Pro Res Tes Hostile Shots Fired 809 | . . 7 . 32 91 10 . 92 49 7 56 . 57 142 266 Missed 297 | . . 1 . 11 29 5 . 42 19 5 28 . 20 79 58 Hits 512 | . . 6 . 21 62 5 . 50 30 2 28 . 37 63 208 Melee 8 | . . . . . . . . . . . . . . . 8 Projectile 504 | . . 6 . 21 62 5 . 50 30 2 28 . 37 63 200 Critical Strikes 38 | . . 1 . 3 1 . . 4 2 . 1 . 2 3 21 Part Disruptions 3 | . . . . . . . . . . . . . . 1 2 Damage Taken 10232 | . . 104 . 551 1029 104 . 873 534 27 447 . 717 1392 4454 Core 1773 | . . . . 16 181 19 . 86 13 . 88 . 64 395 911 Absorbed by Shields 1005 | . . . . . . . . . 167 11 165 . . . 662 Redirected to Shielding 163 | . . . . . . . . 163 . . . . . . . Core Remaining (%) 88 | 100 . . 100 . . . . 69 . . . . 85 . . Volleys Fired 107 | 24 6 7 . 8 10 . . . 16 . 13 . 7 . 16 Largest 3 | 2 2 2 . 3 3 . . . 2 . 1 . 3 . 2 Hottest 132 | 70 70 70 . 132 130 . . . 82 . 35 . 102 . 105 Shots Fired 194 | 48 12 14 . 23 18 . . . 21 . 13 . 16 . 29 Gun 115 | 48 12 14 . 2 3 . . . 16 . 13 . 7 . . Cannon 73 | . . . . 17 15 . . . 5 . . . 7 . 29 Launcher 4 | . . . . 4 . . . . . . . . . . . Special 2 | . . . . . . . . . . . . . 2 . . Kinetic 135 | 24 6 7 . 19 18 . . . 21 . 13 . 14 . 13 Thermal 55 | 24 6 7 . . . . . . . . . . 2 . 16 Explosive 4 | . . . . 4 . . . . . . . . . . . Electromagnetic . | . . . . . . . . . . . . . . . . Robot Hit Streak 12 | 5 4 7 . 10 4 . . . 6 . 4 . 2 . 12 Robot Miss Streak 4 | 2 1 1 . 2 4 . . . 3 . 1 . 2 . 2 Penetration Max 1 | . . . . . . . . . . . 1 . . . . Secondary Targets . | . . . . . . . . . . . . . . . . Shots Hit Robots 169 | 26 8 10 . 15 15 . 5 . 16 . 10 . 7 6 51 Core Hits 68 | 10 4 3 . 10 6 . 2 . 3 . 6 . 6 . 18 Critical Kills 6 | 1 . . . 3 2 . . . . . . . . . . Critical Parts Destroyed 11 | . . . . 3 4 . . . 1 . . . . 3 . Critical Strikes 32 | 1 1 . . 7 7 . . . 2 . 1 . 1 3 9 Burn 1 | . 1 . . . . . . . . . . . . . . Destroy 16 | 1 . . . 7 6 . . . 1 . 1 . . . . Blast 3 | . . . . . . . . . 1 . . . . . 2 Smash 3 | . . . . . . . . . . . . . . 3 . Sever 9 | . . . . . 1 . . . . . . . 1 . 7 Melee Attacks 78 | . . 1 . 4 10 . 5 . 1 . 1 . . 15 41 Impact 25 | . . . . . . . 5 . 1 . 1 . . 15 3 Slashing 53 | . . 1 . 4 10 . . . . . . . . . 38 Piercing . | . . . . . . . . . . . . . . . . Sneak Attacks 6 | . . . . . . . . . 1 . . . . 2 3 Combat Hostiles . | . . . . . . . . . . . . . . . . Follow-up Attacks 2 | . . . . . . . . . . . . . . . 2 Damage Inflicted 6496 | 253 77 105 . 517 431 . 535 . 615 . 285 . 253 370 3055 Guns 1240 | 253 77 105 . 20 22 . . . 354 . 285 . 124 . . Cannons 1560 | . . . . 206 115 . . . 167 . . . 94 . 978 Explosions 291 | . . . . 291 . . . . . . . . . . . Melee 3370 | . . . . . 294 . 535 . 94 . . . . 370 2077 Ramming . | . . . . . . . . . . . . . . . . Kinetic 1974 | 129 27 44 . 226 137 . . . 521 . 285 . 218 . 387 Thermal 861 | 124 50 61 . . . . . . . . . . 35 . 591 Explosive 291 | . . . . 291 . . . . . . . . . . . Electromagnetic . | . . . . . . . . . . . . . . . . Impact 1042 | . . . . . . . 535 . 94 . . . . 370 43 Slashing 2328 | . . . . . 294 . . . . . . . . . 2034 Piercing . | . . . . . . . . . . . . . . . . Highest Corruption 10 | . . . . 4 4 4 4 4 2 2 2 2 . 6 10 Average Corruption 4 | . . . . 3 4 4 4 4 1 2 2 2 . 2 6 Corruption Purged . | . . . . . . . . . . . . . . . . Corruption Blocked 11 | . . . . . . . . . . . . . . . 11 Effects 41 | . . . . 4 2 2 1 3 . 2 1 . . 1 25 Message Errors 7 | . . . . . . . . . . . 1 . . . 6 Matter Fused 11 | . . . . 2 2 1 . 2 . . . . . 1 3 Heat Flow Errors 5 | . . . . . . . 1 . . . . . . . 4 Energy Discharges 4 | . . . . . . . . 1 . . . . . . 3 Parts Rejected 1 | . . . . . . . . . . . . . . . 1 Parts Fused 1 | . . . . . . . . . . 1 . . . . . Data Loss (minor) 6 | . . . . . . . . . . 1 . . . . 5 Data Loss (major) 3 | . . . . . . 1 . . . . . . . . 2 Misfires 1 | . . . . 1 . . . . . . . . . . . Alerts 2 | . . . . 1 . . . . . . . . . . 1 Overload Shots . | . . . . . . . . . . . . . . . . Overflow Damage 565 | . . . . . . . 107 . 83 . . . . 224 151 Projectiles 13 | . . . . . . . . . 13 . . . . . . Explosions . | . . . . . . . . . . . . . . . . Melee 552 | . . . . . . . 107 . 70 . . . . 224 151 Knockbacks 11 | . . . . . 3 . . . 2 . . . 1 . 5 Impact . | . . . . . . . . . . . . . . . . Kinetic 10 | . . . . . 3 . . . 2 . . . 1 . 4 Secondary 1 | . . . . . . . . . . . . . . . 1 Self-Inflicted Damage 24 | . . . . 24 . . . . . . . . . . . Shots 1 | . . . . 1 . . . . . . . . . . . Rammed 1 | . . . . . . . . . . . . . . . 1 Targets Rammed 2 | . . . . . . . . . . . . . . . 2 Kicked . | . . . . . . . . . . . . . . . . Crushed 1 | . . . . . . . . . . . . . . . 1 Highest Temperature 210 | 100 60 22 . 78 72 . 183 1 . . 11 . 19 . 210 Average Temperature 31 | 30 27 10 . 23 25 . 93 1 . . 11 . 11 . 45 Received Heat Transfer 1730 | . . 45 . 144 225 36 . 157 12 . 83 . 247 132 649 Siege Activations . | . . . . . . . . . . . . . . . . Martial Activations . | . . . . . . . . . . . . . . . . Shielding Activations . | . . . . . . . . . . . . . . . . Robots Disrupted . | . . . . . . . . . . . . . . . . Combat Hostiles . | . . . . . . . . . . . . . . . . Robots Corrupted 4 | . . . . . . . 1 . 1 . . . . 2 . Combat Hostiles 1 | . . . . . . . 1 . . . . . . . . Parts Fried 3 | . . . . . . . . . 1 . . . . 2 . Impact Corruptions 14 | . . . . . . . 7 . 1 . . . . 6 . Robots Melted . | . . . . . . . . . . . . . . . . Combat Hostiles . | . . . . . . . . . . . . . . . . Parts Melted . | . . . . . . . . . . . . . . . . Heat Transferred 1369 | 370 222 185 . . . . . . . . . . 74 . 518 Parts Sabotaged . | . . . . . . . . . . . . . . . . Parts Stolen . | . . . . . . . . . . . . . . . . Parts Stripped . | . . . . . . . . . . . . . . . . Power Chain Reactions . | . . . . . . . . . . . . . . . . Alert | -11 -10 -10 -7 -5 -5 -5 -5 -4 -4 -4 -4 -4 -3 -3 -3 ------- Run | Yrd Mat Sub Scr Fac Upp Upp Zhi Pro Fac Upp Upp War Pro Res Tes Maximum Alert Level 1 | . . . . 1 . . . . . . . . . 1 1 Low Security (%) 92 | 100 100 . . 99 . . . . 100 . . . . 55 98 Level 1 7 | . . . . . . . . . . . . . . 44 1 Level 2 . | . . . . . . . . . . . . . . . . Level 3 . | . . . . . . . . . . . . . . . . Level 4 . | . . . . . . . . . . . . . . . . Level 5 . | . . . . . . . . . . . . . . . . High Security . | . . . . . . . . . . . . . . . . Max Security . | . . . . . . . . . . . . . . . . Peak Influence 353 | 5 5 . . 206 . . . . 66 . . . . 353 201 Initial 181 | . . . . . . . . . 53 . . . . 20 181 Average 69 | 1 1 . . 60 . . . . 15 . . . . 158 81 Influence Increases 2415 | 30 10 20 . 266 250 75 5 135 149 120 175 . 90 675 415 Destroy 0b10 Robot/C 500 | . . 20 . 80 80 . . . 40 . 40 . 20 . 220 Destroy 0b10 Robot/NC 85 | 30 10 . . . . . 5 . 10 . . . . 10 20 Destroy Leader 100 | . . . . 10 20 . . . 22 . . . 10 4 34 Successful Hack 16 | . . . . . . . . . 16 . . . . . . Disable Machine 120 | . . . . 60 . . . . 15 . . . . . 45 Destroy Structure 124 | . . . . 86 . . . . 16 . . . . 16 6 Partial Spotted 75 | . . . . . . . . . . . . . . 60 15 Lose Combat Pursuer 1395 | . . . . 30 150 75 . 135 30 120 135 . 60 585 75 Influence Decreases 2310 | 30 5 25 . 92 336 57 111 50 168 75 92 194 60 382 633 Entered New Map 617 | . . 3 . . 66 17 106 . 32 25 22 194 . 10 142 Time Decay 1161 | 30 5 22 . 92 120 40 5 30 116 50 70 . 40 170 371 Search Patrol Dispatched 100 | . . . . . . . . . . . . . . 100 . Lost Part 432 | . . . . . 150 . . 20 20 . . . 20 102 120 Squads Dispatched 14 | . . . . 2 . . . . 3 . 1 . . 4 4 Investigation 2 | . . . . 1 . . . . . . . . . 1 . Extermination 5 | . . . . . . . . . 1 . . . . 1 3 Reinforcement 6 | . . . . 1 . . . . 2 . . . . 2 1 Assault 1 | . . . . . . . . . . . 1 . . . . Garrison . | . . . . . . . . . . . . . . . . Intercept . | . . . . . . . . . . . . . . . . Searches Triggered 1 | . . . . . . . . . . . . . . 1 . Construction Impeded . | . . . . . . . . . . . . . . . . Haulers Reinforced 1 | . . . . . . . . . 1 . . . . . . Active Scanning Responses . | . . . . . . . . . . . . . . . . Cargo Convoy Interrupts . | . . . . . . . . . . . . . . . . Stealth | -11 -10 -10 -7 -5 -5 -5 -5 -4 -4 -4 -4 -4 -3 -3 -3 --------- Run | Yrd Mat Sub Scr Fac Upp Upp Zhi Pro Fac Upp Upp War Pro Res Tes Distress Signals 4 | . 1 . . 1 . . . . 1 . . . . . 1 Communications Jammed . | . . . . . . . . . . . . . . . . Distress Signals . | . . . . . . . . . . . . . . . . Times Spotted 183 | . . 2 . 11 16 6 . 16 13 7 12 . 10 52 38 Peak Tracking Total 13 | . . 1 . 5 5 6 . 7 9 6 10 . 6 11 13 Tactical Retreats 32 | . . . . 2 5 1 . 2 1 3 3 . 2 9 4 Traps | -11 -10 -10 -7 -5 -5 -5 -5 -4 -4 -4 -4 -4 -3 -3 -3 ------- Run | Yrd Mat Sub Scr Fac Upp Upp Zhi Pro Fac Upp Upp War Pro Res Tes Traps Triggered 6 | . . . . 3 . . . . . . . . . 3 . Indirectly . | . . . . . . . . . . . . . . . . Trap Hack Attempts . | . . . . . . . . . . . . . . . . Triggered . | . . . . . . . . . . . . . . . . Disarmed . | . . . . . . . . . . . . . . . . Reprogrammed . | . . . . . . . . . . . . . . . . Reused . | . . . . . . . . . . . . . . . . Traps Extracted . | . . . . . . . . . . . . . . . . Installed . | . . . . . . . . . . . . . . . . Triggered . | . . . . . . . . . . . . . . . . Machines | -11 -10 -10 -7 -5 -5 -5 -5 -4 -4 -4 -4 -4 -3 -3 -3 ---------- Run | Yrd Mat Sub Scr Fac Upp Upp Zhi Pro Fac Upp Upp War Pro Res Tes Machines Disabled 9 | . . . . 4 . . . . 1 . . 1 . . 3 Max in Single Turn 3 | . . . . 3 . . . . 1 . . 1 . . 1 Garrison Access 2 | . . . . . . . . . . . . . . 1 1 Machines Repaired . | . . . . . . . . . . . . . . . . Machines Dismantled 1 | . . . . . . . . . . . . 1 . . . Machines Sabotaged . | . . . . . . . . . . . . . . . . Overloaded Fab Kills . | . . . . . . . . . . . . . . . . Hacking | -11 -10 -10 -7 -5 -5 -5 -5 -4 -4 -4 -4 -4 -3 -3 -3 --------- Run | Yrd Mat Sub Scr Fac Upp Upp Zhi Pro Fac Upp Upp War Pro Res Tes Machines Accessed 22 | . . . 2 4 . . 4 . 2 . . 1 . 6 3 Terminals 10 | . . . . 3 . . . . 2 . . . . 4 1 Fabricators . | . . . . . . . . . . . . . . . . Repair Stations . | . . . . . . . . . . . . . . . . Recycling Units 1 | . . . . . . . . . . . . . . 1 . Scanalyzers 1 | . . . . . . . . . . . . . . . 1 Garrison Access 3 | . . . . 1 . . . . . . . . . 1 1 Total Hacks 52 | . . . 2 11 . . 17 . 3 . . 6 . 9 4 Successful 29 | . . . 2 1 . . 17 . 1 . . 6 . 1 1 Failed 23 | . . . . 10 . . . . 2 . . . . 8 3 Catastrophic 13 | . . . . 7 . . . . . . . . . 4 2 Database Lockouts . | . . . . . . . . . . . . . . . . Manual 16 | . . . . 7 . . . . . . . . . 7 2 Terminals 18 | . . . . 8 . . . . 3 . . . . 6 1 Fabricators . | . . . . . . . . . . . . . . . . Repair Stations . | . . . . . . . . . . . . . . . . Recycling Units 2 | . . . . . . . . . . . . . . 2 . Scanalyzers 1 | . . . . . . . . . . . . . . . 1 Garrison Access 6 | . . . . 3 . . . . . . . . . 1 2 Terminal Hacks 27 | . . . 2 1 . . 17 . 1 . . 6 . . . Record 6 | . . . 1 . . . 5 . . . . . . . . Part Schematic 4 | . . . . . . . 4 . . . . . . . . Robot Analysis 4 | . . . . . . . 4 . . . . . . . . Prototype ID Bank 10 | . . . . . . . 4 . . . . 6 . . . Branch Access Points 2 | . . . . 1 . . . . 1 . . . . . . Proto ID Catalog 1 | . . . 1 . . . . . . . . . . . . Fabricator Hacks . | . . . . . . . . . . . . . . . . Repair Station Hacks . | . . . . . . . . . . . . . . . . Recycling Unit Hacks . | . . . . . . . . . . . . . . . . Scanalyzer . | . . . . . . . . . . . . . . . . Garrison Access Hacks 2 | . . . . . . . . . . . . . . 1 1 Seal Access 2 | . . . . . . . . . . . . . . 1 1 Unauthorized Hacks . | . . . . . . . . . . . . . . . . Terminals . | . . . . . . . . . . . . . . . . Fabricators . | . . . . . . . . . . . . . . . . Repair Stations . | . . . . . . . . . . . . . . . . Recycling Units . | . . . . . . . . . . . . . . . . Scanalyzers . | . . . . . . . . . . . . . . . . Garrison Access . | . . . . . . . . . . . . . . . . Data Cores Recovered . | . . . . . . . . . . . . . . . . Used . | . . . . . . . . . . . . . . . . Hacking Detections 13 | . . . . 4 . . . . 1 . . . . 5 3 Full Trace Events 2 | . . . . 1 . . . . . . . . . 1 . Feedback Events . | . . . . . . . . . . . . . . . . Feedback Blocked . | . . . . . . . . . . . . . . . . Robot Schematics Acquired 1 | . . . . . . . . . . . . . . . 1 Robots Built . | . . . . . . . . . . . . . . . . Authchips . | . . . . . . . . . . . . . . . . Time . | . . . . . . . . . . . . . . . . Total Robot Build Rating . | . . . . . . . . . . . . . . . . Part Schematics Acquired 9 | . . . . . . . 4 . . . . . . . 5 Parts Built . | . . . . . . . . . . . . . . . . Authchips . | . . . . . . . . . . . . . . . . Time . | . . . . . . . . . . . . . . . . Total Part Build Rating . | . . . . . . . . . . . . . . . . Part Studies Acquired . | . . . . . . . . . . . . . . . . Parts Repaired . | . . . . . . . . . . . . . . . . Time . | . . . . . . . . . . . . . . . . Parts Recycled . | . . . . . . . . . . . . . . . . Recycled Matter . | . . . . . . . . . . . . . . . . Retrieved Matter . | . . . . . . . . . . . . . . . . Retrieved Components . | . . . . . . . . . . . . . . . . Parts Scanalyzed . | . . . . . . . . . . . . . . . . Part Schematics Acquired . | . . . . . . . . . . . . . . . . Parts Damaged . | . . . . . . . . . . . . . . . . Bothacking | -11 -10 -10 -7 -5 -5 -5 -5 -4 -4 -4 -4 -4 -3 -3 -3 ------------ Run | Yrd Mat Sub Scr Fac Upp Upp Zhi Pro Fac Upp Upp War Pro Res Tes Used RIF Installer . | . . . . . . . . . . . . . . . . Robots Hacked . | . . . . . . . . . . . . . . . . Non-combat . | . . . . . . . . . . . . . . . . Combat . | . . . . . . . . . . . . . . . . Robot Hacks Applied . | . . . . . . . . . . . . . . . . Relay Couplers Released 1 | . . . . . . . . . . . . . . . 1 Machine Destruction 1 | . . . . . . . . . . . . . . . 1 Fabnet Peak Effective % . | . . . . . . . . . . . . . . . . Robots Rewired . | . . . . . . . . . . . . . . . . Allies Hacked . | . . . . . . . . . . . . . . . . Hacks Repelled . | . . . . . . . . . . . . . . . . Allies | -11 -10 -10 -7 -5 -5 -5 -5 -4 -4 -4 -4 -4 -3 -3 -3 -------- Run | Yrd Mat Sub Scr Fac Upp Upp Zhi Pro Fac Upp Upp War Pro Res Tes Total Allies . | . . . . . . . . . . . . . . . . Largest Group . | . . . . . . . . . . . . . . . . Highest-Rated Group . | . . . . . . . . . . . . . . . . Highest-Rated Ally . | . . . . . . . . . . . . . . . . Initial UFD Resources 45 | . . . . 37 37 37 37 41 41 41 41 41 45 45 45 Total Orders . | . . . . . . . . . . . . . . . . Ally Attacks . | . . . . . . . . . . . . . . . . Total Damage . | . . . . . . . . . . . . . . . . Kills . | . . . . . . . . . . . . . . . . Allies Corrupted . | . . . . . . . . . . . . . . . . Allies Melted . | . . . . . . . . . . . . . . . . Intel | -11 -10 -10 -7 -5 -5 -5 -5 -4 -4 -4 -4 -4 -3 -3 -3 ------- Run | Yrd Mat Sub Scr Fac Upp Upp Zhi Pro Fac Upp Upp War Pro Res Tes Active Infowar (turns) 2373 | 94 78 425 1345 427 4 . . . . . . . . . . Terrain 430 | . . . . 426 4 . . . . . . . . . . Seismic 2021 | 94 78 425 1345 79 . . . . . . . . . . . Robot Analysis Total 4 | . . . . . . . 4 . . . . . . . . Derelict Logs Recovered 2 | . . 1 . . . . . . . . 1 . . . . Drone Launches . | . . . . . . . . . . . . . . . . Drone Recoveries . | . . . . . . . . . . . . . . . . Exploration | -11 -10 -10 -7 -5 -5 -5 -5 -4 -4 -4 -4 -4 -3 -3 -3 ------------- Run | Yrd Mat Sub Scr Fac Upp Upp Zhi Pro Fac Upp Upp War Pro Res Tes Turns Passed 5440 | 190 78 425 1345 427 240 87 101 131 451 106 145 259 124 382 949 Spaces Moved 6456 | 108 62 411 1268 350 387 235 210 227 453 235 343 315 287 1074 491 Core 145 | 3 . . 1 . . . . . . . . . . . 141 Treads 282 | 2 . . . . . . . . . . . . . . 280 Legs 1 | . . . . . . . . . . . . . . . 1 Wheels 2256 | 103 62 411 1267 350 63 . . . . . . . . . . Hover 632 | . . . . . . . 69 227 336 . . . . . . Flight 3140 | . . . . . 324 235 141 . 117 235 343 315 287 1074 69 Fastest Speed 22 | 50 95 95 95 105 32 34 34 30 34 34 34 34 28 22 37 Average Speed 69 | 98 95 95 104 106 44 34 37 55 85 34 34 70 32 26 119 Slowest Speed 550 | 160 95 95 550 115 170 35 114 92 146 37 34 114 103 97 262 Overloaded Moves 408 | . . . . . . . . 31 6 . . . . 371 . Propulsion Burnouts . | . . . . . . . . . . . . . . . . Robots Hopped 15 | . . . . . . 1 . . . . . . . 14 . Potential Cave-ins . | . . . . . . . . . . . . . . . . Cave-ins Triggered . | . . . . . . . . . . . . . . . . Teleports 1 | . . . . . . . . . . . . . . . 1 Exploration Rate (%) 41 | 4 14 31 84 16 57 48 60 54 15 58 56 38 48 31 51 Regions Visited 15 Branch Regions 11 Pre-discovered Areas 3 | . . . . . . . 3 . . . . . . . . Known Exits Taken 10 | . . . . 1 . 1 1 1 1 1 1 1 1 1 . Unknown Exits Taken 5 | 1 1 1 1 . 1 . . . . . . . . . . Scrap Searched 12 | . . . 4 . 2 1 . 1 . 2 1 . 1 . . Spaces Dug 14 | . . . . 4 2 . . . . . . . . 8 . Terrain Destroyed 67 | . . . . 40 3 . . . 6 . 1 . 6 8 3 Melee 14 | . . . . 4 2 . . . . . . . . 8 . Projectile 17 | . . . . . 1 . . . 6 . 1 . 6 . 3 AOE 36 | . . . . 36 . . . . . . . . . . . Terrain Rammed . | . . . . . . . . . . . . . . . . Walls Destroyed . | . . . . . . . . . . . . . . . . Machines Disabled . | . . . . . . . . . . . . . . . . Actions | -11 -10 -10 -7 -5 -5 -5 -5 -4 -4 -4 -4 -4 -3 -3 -3 --------- Run | Yrd Mat Sub Scr Fac Upp Upp Zhi Pro Fac Upp Upp War Pro Res Tes Total 7058 | 144 70 430 1290 379 426 237 224 231 491 259 356 346 300 1129 746 Wait 213 | . . 10 . 4 . . . . . 22 . . . 8 169 Move 6412 | 107 61 410 1267 349 386 232 209 226 452 234 342 314 286 1046 491 Hop 14 | . . . . . . 1 . . . . . . . 13 . Pick Up 42 | 4 3 1 7 4 2 . 1 1 4 1 . 5 1 4 4 Fast Attach 59 | 7 . . 3 3 3 3 7 1 7 . . 4 . 6 15 Attach 34 | . . . . 5 6 . 1 1 3 2 . 2 4 3 7 Detach 18 | . . . 3 . 1 . . . 4 . . 4 1 3 2 Swap 9 | 1 . 1 1 2 1 . . . 1 . . 2 . . . Drop 37 | 1 . . 9 . 7 1 1 2 3 . . 7 1 1 4 Fire 107 | 24 6 7 . 8 10 . . . 16 . 13 . 7 . 16 Melee 73 | . . 1 . 4 10 . 5 . 1 . 1 . . 15 36 Ram 1 | . . . . . . . . . . . . . . . 1 Kick . | . . . . . . . . . . . . . . . . Crush 1 | . . . . . . . . . . . . . . . 1 Escape Stasis 30 | . . . . . . . . . . . . . . 30 . Rewire . | . . . . . . . . . . . . . . . . Trap . | . . . . . . . . . . . . . . . . Miscellaneous 8 | . . . . . . . . . . . . 8 . . . Route ------- -11/Scrapyard -10/Materials -10/Subcaves -7/Scraptown (discovered 2 exits: *Fac x2) -5/Factory (discovered 4 exits: *Upp x2 / Ext x2) -5/Upper Caves -5/Upper Caves (discovered 2 exits: *Fac / *Zhi) -5/Zhirov -4/Proximity Caves -4/Factory (discovered 3 exits: *Upp x2 / Arm) -4/Upper Caves -4/Upper Caves (discovered 2 exits: *Res / *War) -4/Warlord -3/Proximity Caves -3/Research (discovered 2 exits: *Res / *Tes) -3/Testing History --------- Turn | Location | Event 19 | -11/Scrapyard | Discovered new exit (range 15) 191 | -11/Scrapyard | Entered Materials 192 | -10/Materials | Met a group of wandering Federalists 234 | -10/Materials | Discovered new exit (range 12) 269 | -10/Materials | Entered Subcaves 270 | -10/Subcaves | Continued accompanying wandering Federalists (5) 306 | -10/Subcaves | Build established: Mutant 334 | -10/Subcaves | Learned Materials stockpile data 336 | -10/Subcaves | Shifting Twisted Machinery released Ripper 403 | -10/Subcaves | A swath of the cavern ceiling suddenly collapsed 483 | -10/Subcaves | Shifting Twisted Machinery released Sub. Optics 496 | -10/Subcaves | Shifting Twisted Machinery released Sub. Monowheel 514 | -10/Subcaves | Wandering Federalist uncovered a shortcut to Scraptown 694 | -10/Subcaves | Entered Scraptown 844 | -7/Scraptown | Discovered new exit (range 11) 1035 | -7/Scraptown | Heard Great Nut preacher, LISTEN AND RECITE! 1050 | -7/Scraptown | Visited UFD Registry 1058 | -7/Scraptown | Visited Artisan Demo Area 1067 | -7/Scraptown | Visited Fellowship of the Rings 1086 | -7/Scraptown | Visited Cave Peace 1095 | -7/Scraptown | Visited TADAMA 1114 | -7/Scraptown | Visited Comm Corps 1123 | -7/Scraptown | Visited Assassins FH 1131 | -7/Scraptown | Visited Shadow of the Wyrm 1301 | -7/Scraptown | Registered with UFD as "Rusthead" 1326 | -7/Scraptown | Visited Science Guys 1360 | -7/Scraptown | Visited Junk Repository 1391 | -7/Scraptown | Visited Derelict Rescue Squad 1405 | -7/Scraptown | Visited Supply Room 1511 | -7/Scraptown | Visited Analyses Database 1529 | -7/Scraptown | Visited Scrap Suit Storage 1536 | -7/Scraptown | Found Scrap Suit 1556 | -7/Scraptown | Visited Cartography Club 1707 | -7/Scraptown | Visited DA-N13 Charitable Foundation 1716 | -7/Scraptown | Found DCF Scrap (29 items) 1783 | -7/Scraptown | Visited Curators Association 1805 | -7/Scraptown | Visited Chapter 10 1967 | -7/Scraptown | Met Optimus 1967 | -7/Scraptown | Accepted into 0bPrime 2035 | -7/Scraptown | Discovered new exit (range 3) 2039 | -7/Scraptown | Entered Factory 2039 | -5/Factory | Evolved 10 slots: Power x1, Propulsion x4, Utility x3, Weapon x2 2271 | -5/Factory | Identified exit to Upper Caves 2271 | -5/Factory | Identified exit to Extension 2427 | -5/Factory | Build established: Gunner 2466 | -5/Factory | Entered Upper Caves 2564 | -5/Upper Caves | Attracted the attention of an 0b10 base 2606 | -5/Upper Caves | Spotted B-75 Beast 2622 | -5/Upper Caves | Lost 13 parts (3p2n4u4w) 2673 | -5/Upper Caves | Attracted the attention of an 0b10 checkpoint 2705 | -5/Upper Caves | Discovered new exit (range 5) 2706 | -5/Upper Caves | Entered another Upper Caves area 2711 | -5/Upper Caves | Discovered new exit (range 12) 2781 | -5/Upper Caves | Discovered new exit (range 14) 2787 | -5/Upper Caves | Attracted the attention of an 0b10 checkpoint 2789 | -5/Upper Caves | Identified exit to Zhirov 2793 | -5/Upper Caves | Entered Zhirov 2793 | -5/Zhirov | Discovered new exit (range 3) 2800 | -5/Zhirov | Met Zhirov 2806 | -5/Zhirov | Learned location of Quarantine (-2) 2806 | -5/Zhirov | Learned location of Testing (-3) 2806 | -5/Zhirov | Learned location of Command (-1) 2809 | -5/Zhirov | Zhirov requested help retrieving the SGEMP Prototype 2819 | -5/Zhirov | Found Alien Artifact 2819 | -5/Zhirov | Identified Integrated Dissipator 2819 | -5/Zhirov | Installed Integrated Dissipator, increased core heat dissipation (+20) 2874 | -5/Zhirov | Found Alien Artifact 2894 | -5/Zhirov | Identified exit to Proximity Caves 2894 | -5/Zhirov | Entered Proximity Caves 2899 | -4/Proximity Caves | Attracted the attention of an 0b10 checkpoint 2947 | -4/Proximity Caves | Found DCF Scrap (14 items) 3022 | -4/Proximity Caves | Discovered new exit (range 9) 3024 | -4/Proximity Caves | Identified exit to Factory 3025 | -4/Proximity Caves | Entered Factory 3025 | -4/Factory | Evolved 2 slots: Utility x2 3373 | -4/Factory | Identified exit to Upper Caves 3373 | -4/Factory | Identified exit to Armory 3387 | -4/Factory | Build established: Mutant 3476 | -4/Factory | Entered Upper Caves 3577 | -4/Upper Caves | Discovered new exit (range 11) 3582 | -4/Upper Caves | Identified exit to Upper Caves 3582 | -4/Upper Caves | Entered another Upper Caves area 3582 | -4/Upper Caves | Discovered new exit (range 12) 3589 | -4/Upper Caves | Spotted B-86 Titan 3682 | -4/Upper Caves | Attracted the attention of an 0b10 outpost 3711 | -4/Upper Caves | Discovered new exit (range 15) 3718 | -4/Upper Caves | Learned location of 1 exit from Research 3726 | -4/Upper Caves | Identified exit to Warlord 3727 | -4/Upper Caves | Entered Warlord 3740 | -4/Warlord | System corruption cleaned by Quarantine Array 3797 | -4/Warlord | Found Prototype Reactor 3797 | -4/Warlord | Identified Vortex Chain Reactor 3820 | -4/Warlord | Found Prototype Device 3820 | -4/Warlord | Identified Exp. Phase Shifter 3833 | -4/Warlord | Found Prototype Processor 3835 | -4/Warlord | Identified Exp. Armor Integrity Analyzer 3841 | -4/Warlord | Found Prototype Device 3978 | -4/Warlord | Discovered new exit (range 8) 3984 | -4/Warlord | Identified exit to Proximity Caves 3986 | -4/Warlord | Entered Proximity Caves 4030 | -3/Proximity Caves | Identified System Purifier 4047 | -3/Proximity Caves | Attracted the attention of an 0b10 checkpoint 4060 | -3/Proximity Caves | Lost 4 parts (1n1u2w) 4108 | -3/Proximity Caves | Discovered new exit (range 7) 4109 | -3/Proximity Caves | Identified exit to Research 4110 | -3/Proximity Caves | Entered Research 4110 | -3/Research | Evolved 2 slots: Propulsion x2 4111 | -3/Research | Identified exit to Research 4322 | -3/Research | Found Prototype Device 4355 | -3/Research | Build established: Sprinter 4360 | -3/Research | Search patrols dispatched 4367 | -3/Research | Found Fusion Bomb Launcher 4428 | -3/Research | Lost 3 parts (2n1u) 4489 | -3/Research | Discovered new exit (range 6) 4491 | -3/Research | Identified exit to Testing 4492 | -3/Research | Entered Testing 4499 | -3/Testing | Found Prototype Energy Cannon 4499 | -3/Testing | Identified Cld. Nova Cannon 4519 | -3/Testing | Lost 5 parts (1p4n) 4527 | -3/Testing | Found Prototype Device 4527 | -3/Testing | Identified AEGIS Remote Shield 4635 | -3/Testing | Spotted PG-O8V5A30C9Z 4736 | -3/Testing | Lost 10 parts (1p3n3u3w) 4739 | -3/Testing | Core integrity fell below 50% 4746 | -3/Testing | Spotted Striker 4746 | -3/Testing | Spotted Striker 4766 | -3/Testing | Spotted Alpha 7 4768 | -3/Testing | Core integrity fell below 20% 4770 | -3/Testing | Stole the SGEMP Prototype 4771 | -3/Testing | Identified Transdimensional Reconstructor 4771 | -3/Testing | Warped through subspace 4801 | -3/Testing | Build established: Mutant 5100 | -3/Testing | Found Prototype Launcher 5252 | -3/Testing | System corruption reached 10% 5441 | -3/Testing | Destroyed by P-80 Master with Gamma Rifle Last Messages --------------- 05399_ Scanalyzer disabled. 05400_ P-80 Master Gamma Rifle severed. 05406_ Destroyed Adv. Heat Sink. 05409_ P-80 Master destroyed. 05415_ Destroyed Microactuators. 05419_ Imp. Corruption Screen intercepted 1% system corruption. 05422_ System corrupted: Heat flow error (+194). 05422_ Imp. Corruption Screen intercepted 1% system corruption. 05430_ Destroyed Imp. Antigrav System. 05431_ Imp. Corruption Screen intercepted 1% system corruption. 05433_ G-67 Veteran Lgt. Antimatter Reactor severed. 05433_ Imp. Corruption Screen intercepted 1% system corruption. 05439_ G-67 Veteran Flexi-carbon Leg severed. 05439_ Imp. Corruption Screen intercepted 1% system corruption. Map ----- +----------------------------------------------------+ | ?????????????????????????????????????????????????? | | ?????????????????????????????????????????????????? | | ?????????????????????????????????????????????????? | | ?????????????????????????????????????????????????? | | ?????????????????????????????????????????????????? | | ?????????????????????????????????????????????????? | | ?????????????????????????????????????????????????? | | ?????????????????????????????????????????????????? | | ?????????????????????????????????????????????????? | | ?????????????????????????????????????????????????? | | ?????????????????????????????????????????????????? | | ?????????????????????????????????????????????????? | | ?????????????????????#+??????????????????????????? | | ???????????????????### #?????????????????????????? | | ??????????????????? #????????????????????????? | | ???????????????????? #????????????????????????? | | ???????????????????? #????????????????????????? | | ????????????????????# #????????????????????????? | | ????????????????????# #????????????????????????? | | ????????????????????# #????????????????????????? | | ????????????????????# #????????????????????????? | | ????????????????????# ######???????????????????? | | ????????????????????# # #???????????????????? | | ????????????????????# # " #???????????????????? | | ????????????????????# #== #???????????????????? | | ????????????????????# =!#@!p #???????????????????? | | ????????????????????# =!glpS #???????????????????? | | ????????????????????# |!#="" #???????????????????? | | ???????????????## # *[#!"" #???????????????????? | | ?????????? " # "" #???????????????????? | | ??????????????### ### # g #???????????????????? | | ????????????????####??# ######???????????????????? | | ??????????????????????# #????????????????????????? | | ??????????????????????# #????????????????????????? | | ??????????????????????# #????????????????????????? | | ??????????????????????# #????????????????????????? | | ??????????????????????# #????????????????????????? | | ??????????????????????# #????????????????????????? | | ??????????????????????# #????????????????????????? | | ??????????????????????# #????????????????????????? | | ??????????????????????# #????????????????????????? | | ??????????????????????#|#????????????????????????? | | ??????????????????????#!#????????????????????????? | | ??????????????????????# #????????????????????????? | | ??????????????????????# #????????????????????????? | | ??????????????????????#%#????????????????????????? | | ??????????????????????#+######???????????????????? | | ??????????????????????# """ #???????????????????? | | ??????????????????????# """ #???????????????????? | | ??????????????????????# """ ]#???????????????????? | +----------------------------------------------------+ Best States ------------- Heat Dissipation 104 Energy Generation 55 Energy Capacity 700 Matter Stores 300 Matter Capacity 300 Sight Range 16 Terrain Scan Range 16 Terrain Scan Density 10 Corruption Block 13 Armor Coverage 150 Utility Shielding 90 Phase Shifting 20 Evasion (%) 85 Melee Accuracy 6 Target Analysis 12 Armor Integrity Analysis 50 Recoil Reduction 8 Matter Filtering 50 Kinecelleration 30 Defensive Hacking 14 Item Schematics ----------------- Assault Drone Bay | -5/Zhirov | Free Exp. Heat Sink | -5/Zhirov | Free Exp. Optical Array | -5/Zhirov | Free Imp. Arc Thrower | -5/Zhirov | Free Enh. Coil Gun | -3/Testing | Archive Hvy. Wave Gun | -3/Testing | Archive Prc. Energy Filter | -3/Testing | Archive Gravity Neutralizer | -3/Testing | Archive Enh. Armored Leg | -3/Testing | Archive Robot Schematics ------------------ K-01 Serf | -3/Testing | Archive Fabricated ------------ Nothing Repaired ---------- Nothing Studied --------- None Alien Tech Used ----------------- Integrated Dissipator Transdimensional Reconstructor Achievements -------------- None Challenges ------------ None Game ------ Seed FlakStructuralAccelerator Manual? 0 Play Time 00:51:14 Cumulative 166.4 hours Start 2026.08.20 @ 12:24:35 End 2026.08.20 @ 13:15:41 Sessions 1 Manual Loads 0 Difficulty Rogue Special Mode None Game No. 331 Rogue 331 Adventurer 0 Explorer 0 Win Type - Total 2 Types 2/0/0/0/0/0/0/0/0/0 Lore% 57 Gallery% 58 Achievement% 46 Wizard Run 0 Options --------- Layout 2 ASCII 0 Keyboard 1 Movement Arrows Keybinds 0 Fullscreen 1 Font 24/Smallcaps Map View 50x44 Zoom Use 0% Tactical HUD 1 Map Filters NONE Filters NONE Steam 1 RUN: 0e872447-39fb-4c52-ac72-ee351270f250